{"text_format":"3","workbook":"xlsx","n_sheets":4,"sheets":["Zadanie 1","Zadanie nr 2","Zadanie nr 3","Zadanie nr 4"],"not_rendered":{"defined_names":2,"comments":1},"read":"whole","date_system":"1900"}

{"sheet":"Zadanie 1","index":0,"n_rows":77,"n_cols":11,"rows_kept":77,"merged":[[1,0,1,10],[2,0,2,10],[3,0,3,10],[30,0,30,9],[31,0,31,10],[32,0,32,10],[33,0,33,10],[34,10,39,10],[39,0,39,8],[40,0,40,10],[41,0,41,10],[49,2,49,9],[50,0,50,10],[51,0,51,10],[52,1,52,10],[53,7,58,10],[59,0,60,10],[61,0,61,10],[62,1,62,10],[63,0,63,10],[64,1,64,10],[65,0,65,10],[66,0,73,0],[66,1,66,2],[66,3,66,7],[66,8,73,10],[67,1,68,7],[69,1,69,7],[70,1,70,7],[71,1,73,7],[76,1,76,10]]}
[]
["FORMULARZ CENOWY DLA ZADANIA NR 1 (ZAŁACZNIK NR 1.1)"]
["Usługi hotelarsko-restauracyjne dla jurorów, uczestników, pianistów, gości, tłumaczy, obsługi zespołu realizacyjno-technicznego oraz obsługi konkursu w trakcie 17. Międzynarodowego Konkursu Skrzypcowego im. Henryka Wieniawskiego w terminie 4-27 października 2026 roku."]
["A. Usługi noclegowe rozliczane z Zamawiającym"]
["lp.","Kategoria/opis świadczenia","Termin","Liczba pokoi,                                            apartamentów ","Liczba dób","Jednostka rozliczeniowa","Ilość do wyceny","Cena jednostkowa netto","Wartość  netto                                            [zł]","VAT [%]*","Wartość brutto               [zł]"]
["1.","apartament","6-25.10.2026",1,19,"apartament/         doba",{"$f":"D6*E6","v":19}]
["2.","pokój dwuosobowy do pojedyńczego wykorzystania - jurorzy","6-25.10.2026",11,19,"pokój/doba",{"$f":"D7*E7","v":209}]
["3.","Pokój jednoosobowy lub dwuosobowy do pojedynczego wykorzystania – uczestnicy","7-13.10.2026",50,6,"pokój/doba",300]
["4.","Pokój jednoosobowy lub dwuosobowy do pojedynczego wykorzystania – uczestnicy","13-16.102026",24,3,"pokój/doba",72]
["5.","Pokój jednoosobowy lub dwuosobowy do pojedynczego wykorzystania – uczestnicy","16-19.10.2026",12,3,"pokój/doba",36]
["6.","Pokój jednoosobowy lub dwuosobowy do pojedynczego wykorzystania – uczestnicy","19-25.10.2026",6,6,"pokój/doba",36]
["7.","pokoje jednoosobowe lub dwuosobowe dla osoby towarzyszącej uczestnikowi","7-13.10.2026",5,6,"pokój/doba",30]
["8.","pokoje jednoosobowe lub dwuosobowe dla osoby towarzyszącej uczestnikowi","13-16.10.2026",5,3,"pokój/doba",15]
["9.","pokoje jednoosobowe lub dwuosobowe dla osoby towarzyszącej uczestnikowi","16-19.10.2026",5,3,"pokój/doba",15]
["10.","pokoje jednoosobowe lub dwuosobowe dla osoby towarzyszącej uczestnikowi","19-25.10.2026",5,6,"pokój/doba",30]
["11.","Pokój jednoosobowy lub dwuosobowy do pojedynczego wykorzystania – pianiści","7-16.10.2026",10,9,"pokój/doba",90]
["12.","Pokój jednoosobowy lub dwuosobowy do pojedynczego wykorzystania – pianiści","6-16.10.2026",3,10,"pokój/doba",30]
["13.","Pokój dwuosobowy do pojedynczego wykorzystania – goście","6-25.10.2026",2,19,"pokój/doba",38]
["14.","Pokój jednoosobowy lub dwuosobowy do pojedynczego wykorzystania – goście","7-9.10.2026",2,2,"pokój/doba",4]
["15.","Pokój jednoosobowy lub dwuosobowy do pojedynczego wykorzystania – goście","7-24.10.2026",6,17,"pokój/doba",102]
["16.","Pokój jednoosobowy lub dwuosobowy do pojedynczego wykorzystania – goście","7-24.10.2026",8,17,"pokój/doba",136]
["17.","Pokój jednoosobowy lub dwuosobowy do pojedynczego wykorzystania – goście","17-24.10.2026",5,7,"pokój/doba",35]
["18.","Pokój jednoosobowy lub dwuosobowy do pojedynczego wykorzystania – goście","20-24.10.2026",15,4,"pokój/doba",60]
["19.","Pokój jednoosobowy lub dwuosobowy do pojedynczego wykorzystania – goście","17-24.10.2026",14,7,"pokój/doba",98]
["20.","Pokój jednoosobowy lub dwuosobowy do pojedynczego wykorzystania – tłumacze","7-25.10.2026",4,18,"pokój/doba",72]
["21.","Pokój jednoosobowy lub dwuosobowy – zespół realizacyjno-techniczny","4-25.10.2026",12,21,"pokój/doba",252]
["22.","Pokój jednoosobowy lub dwuosobowy  – zespół realizacyjno-techniczny","6-25.10.2026",6,19,"pokój/doba",114]
["23.","Pokój jednoosobowy lub dwuosobowy – zespół realizacyjno-techniczny","7-25.10.2026",8,18,"pokój/doba",144]
["24.","Pokoje z możliwością łączenia i przeorganizowania na potrzeby obsługi konkursu; do wyceny przyjęto maksymalnie 8 pokoi","6-27.10.2026",8,21,"pokój/doba",168]
["25.","Pokoje dwuosobowe – obsługa konkursu","7-25.10.2026",2,18,"pokój/doba",36]
[]
["* Wykonawca w poz. VAT [%] podaje własciwą stawkę podatku VAT. W przypadku gdy w danej pozycji koniecznym jest wskazanie kilku stawek podatku VAT, dopuszczalnym jest wyodrębnienie dla danej pozycji dla każdej stawki odrębnie. "]
[]
["B. Wynajem sal i obsługa wydarzeń"]
["lp.","Opis świadczenia","Termin","Zakres/            założenie do wyceny","Jednostka rozliczeniowa","Ilość do wyceny","Cena jednostkowa netto [zł]","Wartość netto [zł]","VAT [%]","Wartość brutto [zł]"]
["1.","Sala dla ok. 25 osób                              - I posiedzenie jury","8.10.2026","Czas wykorzystania: ok. 1–2 godziny; ustawienie stołów i krzeseł: np. podkowa;                 woda gazowana i niegazowana, szklanki","usługa",1]
["2.","Sala na konferencję prasową","8.10.2026","Sala dla 100–150 osób; ustawienie teatralne; stół prezydialny; min. 2 mikrofony, rzutnik, ekran, nagłośnienie, sztaluga","usługa",1]
["3.","Przerwa kawowo-kanapkowa podczas konferencji prasowej","8.10.2026","Do wyceny przyjęto maksymalnie 150 osób; małe kanapki/tartinki, ciastka bankietowe, kawa, herbata, woda, soki","osoba",150]
["4.","Sala na konferencję prasową dla ok. 30 osób ","19.10.2026","Czas wykorzystania: ok. 1–2 godziny; ustawienie stołów i krzeseł kiklka stolików-do uzgodnienia;                 woda gazowana i niegazowana, szklanki","usługa",1]
["RAZEM"]
[]
["C. Wyżywienie"]
["lp.","Grupa/opis świadczenia","Termin","Liczba osób","Liczba dni","Jednostka rozliczeniowa","Ilość do wyceny","Cena jednostkowa netto [zł]","Wartość netto [zł]","VAT [%]","Wartość brutto [zł]"]
["1. ","Obiad dla jurorów","6-25.10.2026",16,20,"osoba/posiłek",{"$f":"D44*E44","v":320}]
["2.","Kolacja dla jurorów w formie mini bufetu","6-25.10.2027",16,20,"osoba/posiłek",{"$f":"D45*E45","v":320}]
["3.","Lunch dnia dla pianistów, gości, tłumaczy, zespołu realizacyjno-technicznego oraz obsługi konkursu","5-8.10.2026",20,4,"osoba/posiłek",{"$f":"D46*E46","v":80}]
["4.","Lunch dnia dla pianistów, gości, tłumaczy, zespołu realizacyjno-technicznego oraz obsługi konkursu","9-24.10.2026",60,16,"osoba/posiłek",{"$f":"D47*E47","v":960}]
["5.","Kolacja dla pianistów, gości, tłumaczy, zespołu realizacyjno-technicznego oraz obsługi konkursu","9-24.10.2026",20,16,"osoba/posiłek",{"$f":"D48*E48","v":320}]
["6.","Lunch i kolacja","25.10.2026",20,1,"osoba/posiłek",20]
["RAZEM "]
[]
["D. Ceny jednostkowe do rozliczeń opcjonalnych "]
[]
["lp.","Opis świadczenia","Zakres świadczenia","Jednostka rozliczeniowa","Cena jednostkowa netto [zł]","VAT [%]","Cena jednostkowa brutto [zł}"]
["1.","Lunch pakiet kanapkowy wraz z napojem/wodą","Sałatka 25–30 g, 2 kanapki z serem/wędliną po 80 g/szt., napój: woda/sok","osoba/posiłek"]
["2.","Obiad dla jurorów – cena jednostkowa do rozliczeń faktycznych","Zupa 250 ml, drugie danie 350 g, napoje bez limitu: woda/sok/lemoniada/kawa/herbata","osoba/posiłek"]
["3.","Kolacja jurorska – cena jednostkowa do rozliczeń faktycznych","Mini bufet: mix sałatek, wędlina porcjowana, ser porcjowany, 350 g/os., napoje bez limitu","osoba/posiłek"]
["4.","Lunch dnia – cena jednostkowa do rozliczeń faktycznych","Zupa 250 ml, drugie danie 350 g, napój: woda/sok/lemoniada","osoba/posiłek"]
["5.","Kolacja dla pozostałych grup – cena jednostkowa do rozliczeń faktycznych","Mini bufet/kanapki, mix sałatek, wędlina porcjowana, ser porcjowany, 350 g/os., napoje: woda/sok/herbata/kawa","osoba/posiłek"]
[]
[]
["E. Oświadczenie Wykonawcy"]
[null,"Oświadczamy, że zaoferowane ceny obejmują wszystkie koszty niezbędne do prawidłowego wykonania przedmiotu zamówienia, zgodnie z opisem przedmiotu zamówienia, w tym koszty zakwaterowania, organizacji sal, wyposażenia, obsługi, wyżywienia, podatków, opłat oraz wszelkie inne koszty, które mogą powstać w związku z realizacją zamówienia."]
[]
[null,"Oświadczamy, że ceny jednostkowe wskazane w formularzu będą podstawą do rozliczeń z Zamawiającym w przypadku zmniejszenia, zwiększenia lub zamiennego wykorzystania poszczególnych świadczeń, o ile dokumenty zamówienia przewidują takie rozliczenie."]
[]
[null,"Cena oferty brutto: "]
[null,"słownie:"]
[]
[null,"Miejscowość i data: "]
[]
[null,"Podpis Wykonawcy: "]
[]
[]
[]
[]
[null,"Dokument należy wypełnić i podpisać kwalifikowanym podpisem elektronicznym                                                               lub podpisem zaufanym lub podpisem osobistym.\nZamawiający zaleca zapisanie dokumentu w formacie PDF.   \n"]

{"sheet":"Zadanie nr 2","index":1,"n_rows":37,"n_cols":12,"rows_kept":37,"merged":[[1,0,1,11],[2,0,2,11],[10,0,13,0],[10,1,13,1],[10,2,13,2],[10,6,10,11],[15,0,15,10],[16,0,16,10],[17,0,17,11],[18,0,18,11],[19,0,33,0],[19,1,20,11],[21,1,21,11],[22,1,23,11],[24,1,24,11],[25,1,25,6],[25,7,33,11],[26,1,27,6],[28,1,28,6],[29,1,30,6],[31,1,33,6],[36,0,36,11]]}
[]
["FORMULARZ CENOWY DLA ZADANIA NR 2 (ZAŁACZNIK NR 1.2)"]
["Usługi restauracyjne dla jurorów i artystów                                                                                                                                                                                                      17. Międzynarodowego Konkursu Skrzypcowego im. H. Wieniawskiego  7-24 października 2026 r. "]
["lp.","świadczenie","opis świadczenia","termin","liczba osób","liczba              dni","Jednostka rozliczeniwa","Ilość do wyceny","Cena jednostkowa netto [zł]","Wartość netto [zł]","VAT                      [%]","Wartość brutto [zł]"]
["1.","przerwa śniadaniowo – kawowa                                              I i II etap                                             sesja przedpołudniowa","kanapki, tartinki oraz zestaw pieczywa cukierniczego typu drożdżówka, ciasto francuskie, placek z owocem itp., (3-6 szt./os),                                                         bez limitu: kawa, herbata, napoje zimne (soki-min. 2 różne), woda dla zespołu jurorskiego (11-14 os.) oraz osób wspomagających prace jury (max. 6 os.)  z dostawą zastawy (filiżanki, talerzyki, cukierniczka, mlecznik, łyżeczki, sztućce, dzbanki do napojów, szklanki do napojów) wraz z obsługą,","9-15.10.2026",20,7,"osoba/posiłek",{"$f":"E5*F5","v":140}]
["2.","przerwa kawowa                                             I i II etap                                                sesja popołudniowa","zestaw pieczywa cukierniczego typu drożdżówka, ciasto francuskie,\nplacek z owocem (2-4 szt./os),                            bez limitu: kawa, herbata, napoje zimne (soki-min. 2 różne), woda dla zespołu jurorskiego (11-14 os.) oraz osób wspomagających prace jury (max. 6 os.) z dostawą zastawy (filiżanki, talerzyki, cukierniczka, mlecznik, łyżeczki, sztućce, dzbanki do napojów, szklanki do napojów) wraz z obsługą\n","9-15.10.2026",20,7,"osoba/posiłek",{"$f":"E6*F6","v":140}]
["3.","przerwa kawowa                      III etap                                                     ","zestaw pieczywa cukierniczego typu drożdżówka, ciasto francuskie,\nplacek z owocem (2-4 szt./os),                               bez limitu: kawa, herbata, napoje zimne (soki-min. 2 różne), woda dla zespołu jurorskiego (11-14 os.) oraz osób wspomagających prace jury (max. 6 os.) z dostawą zastawy (filiżanki, talerzyki, cukierniczka, mlecznik, łyżeczki, sztućce, dzbanki do napojów, szklanki do napojów) wraz z obsługą\n","17-18.10.2026",20,2,"osoba/posiłek",{"$f":"E7*F7","v":40}]
["4.","przerwa kawowa                         IV etap","zestaw pieczywa cukierniczego typu drożdżówka, ciasto francuskie,\nplacek z owocem (2-4 szt./os),                               bez limitu: kawa, herbata, napoje zimne (soki-min. 2 różne), woda dla zespołu jurorskiego (11-14 os.) oraz osób wspomagających prace jury (max. 6 os.) z dostawą zastawy (filiżanki, talerzyki, cukierniczka, mlecznik, łyżeczki, sztućce, dzbanki do napojów, szklanki do napojów) wraz z obsługą\n","20-22.10.2026",20,3,"osoba/posiłek",60]
["5.","4 kolacje kanapkowo-garmażeryjne, przygotowane z produktów własnych, po ogłoszeniu wyników po poszczególnych etapach\n","np: kanapki, tartinki, mała garmażerka lub ciepłe przekąski oraz zestaw pieczywa (3-6 szt./os),                                                                             bez limitu: kawa, herbata, napoje zimne (soki-min. 2 różne), woda dla zespołu jurorskiego (11-14 os. ) oraz osób wspomagających prace jury (max. 6 os.),                                                                     z dostawą zastawy (filiżanki, talerzyki, cukierniczka, mlecznik, łyżeczki, sztućce, dzbanki do napojów, szklanki do napojów) wraz z obsługą","12,15,18                                  i 22.10.2026",20,4,"osoba/posiłek",80]
["6.","przerwa w trakcie koncertu galowego ","np.: tartinki (3-4 szt./os),                                             bez limitu: woda/sok/herbata dla zespołu jurorskiego (11-14 os. ) oraz osób wspomagających prace jury (max.6 os.),                                                  z dostawą zastawy (filiżanki, talerzyki, cukierniczka, mlecznik, łyżeczki, sztućce, dzbanki do napojów, szklanki do napojów ) wraz z obsługą","23.10.2026",20,1,"osoba/posiłek",20]
["7.","obsługa auli UAM ","woda butelkowana (gazowana i niegazowana) oraz szklanki na stoliki jurorskie (max. 14 stolików) wg harmonogramu:                                                                                                                                                                                                            1. 9-15.10.2026 – 4 but./os./dzień \n2. 17-18.10.2026 – 2 but./os./dzień\n3. 20-22.10.2026 – 2 but./os./dzień                                    wraz z  obsługą                        \n                       ","ilość dni","liczba stolików","liczba butelek"]
[{"$nulls":3},7,14,4,"osoba/woda",{"$f":"D12*(E12*F12)","v":392}]
[{"$nulls":3},2,14,2,"osoba/woda",{"$f":"D13*(E13*F13)","v":56}]
[{"$nulls":3},3,14,2,"osoba/woda",84]
["8.","obsługa pokoju dyrygenta oraz artystów                             ","woda mineralna gazowana i                                      niegazowana, soki min. 2 rodzaje                                                                        bez limitu: kawa/herbata                                                           z dostawą zastawy (filiżanki, talerzyki, cukierniczka, mlecznik, łyżeczki, sztućce, dzbanki do napojów, szklanki  do napojów)  wraz z obsługą","7-24.10.2026",7,18,"osoba/napoje",126]
[]
["ŁĄCZNA CENA OFERTY"]
[]
[" Oświadczenie Wykonawcy"]
[null,"Oświadczamy, że zaoferowane ceny obejmują wszystkie koszty niezbędne do prawidłowego wykonania przedmiotu zamówienia, zgodnie z opisem przedmiotu zamówienia, w tym koszty zakwaterowania, organizacji sal, wyposażenia, obsługi, wyżywienia, podatków, opłat oraz wszelkie inne koszty, które mogą powstać w związku z realizacją zamówienia."]
[]
[]
[null,"Oświadczamy, że ceny jednostkowe wskazane w formularzu będą podstawą do rozliczeń z Zamawiającym w przypadku zmniejszenia, zwiększenia lub zamiennego wykorzystania poszczególnych świadczeń, o ile dokumenty zamówienia przewidują takie rozliczenie."]
[]
[]
[null,"Cena oferty brutto: "]
[null,"słownie:"]
[]
[]
[null,"Miejscowość i data"]
[]
[null,"Podpis Wykonawcy:"]
[]
[]
[]
[]
["Dokument należy wypełnić i podpisać kwalifikowanym podpisem elektronicznym lub podpisem zaufanym lub podpisem osobistym.\nZamawiający zaleca zapisanie dokumentu w formacie PDF.   "]

{"sheet":"Zadanie nr 3","index":2,"n_rows":25,"n_cols":11,"rows_kept":25,"merged":[[1,0,1,10],[2,0,2,10],[6,0,6,9],[7,0,7,10],[8,0,8,10],[9,0,21,0],[9,1,9,10],[10,1,10,10],[11,1,12,10],[13,1,13,10],[14,1,14,3],[14,5,21,10],[15,1,16,4],[17,1,18,4],[19,1,21,4],[24,0,25,10]]}
[]
["FORMULARZ CENOWY DLA ZADANIA NR 3 (ZAŁACZNIK NR 1.3)"]
["Bankiet otwarcia – 8 października 2026 r. "]
["lp.","świadczenie","opis świadczenia","termin","liczba osób","Jednostka rozliczeniwa","Ilość do wyceny","Cena jednostkowa netto [zł]","Wartość netto [zł]","VAT                      [%]","Wartość brutto [zł]"]
["1.","Bankiet otwarcia ","wyposażenie: stoliki koktajlowe wysokie, stoły pod bufety, nakrycie bankietowe, min. 2 mikrofony, nagłośnienie; aperitif / Prosecco                                                           przygotowanie w formie szwedzkiego stołu:                          bufet ciepły (4-6 propozycji, 3 p./os., porcja nie mniejsza niż 100g.); przekąski-finger (5-15 propozycji, 4-6 p./os., porcja nie mniejsza niż 25g.), tartinki dekorowane (3-6 propozycji, 4-6 p./os., porcja nie mniejsza niż 30g.); bufet deserowy (mini deserki i ciasteczka bankietowe,  3-5 propozycji, 3 p./os., porcja nie mniejsza niż 25g.); napoje zimne i gorące: napoje zimne (soki, min. 2 smaki – 0,5 l/os), woda, dodatki; ciepłe (herbata, kawa bez limitu); alkohole (Prosecco 0,15l/os., wino wytrawne białe i czerwone  0,3 l/os. – serwowane, liczone wg faktycznego  spożycia)        ","08.10.2026",250,"osoba",250]
[]
["ŁĄCZNA CENA OFERTY"]
[]
["Oświadczenie Wykonawcy"]
[null,"Oświadczamy, że zaoferowane ceny obejmują wszystkie koszty niezbędne do prawidłowego wykonania przedmiotu zamówienia, zgodnie z opisem przedmiotu zamówienia, w tym koszty zakwaterowania, organizacji sal, wyposażenia, obsługi, wyżywienia, podatków, opłat oraz wszelkie inne koszty, które mogą powstać w związku z realizacją zamówienia."]
[]
[null,"Oświadczamy, że ceny jednostkowe wskazane w formularzu będą podstawą do rozliczeń z Zamawiającym w przypadku zmniejszenia, zwiększenia lub zamiennego wykorzystania poszczególnych świadczeń, o ile dokumenty zamówienia przewidują takie rozliczenie."]
[]
[]
[null,"Cena oferty brutto: "]
[null,"słownie:"]
[]
[null,"Miejscowość i data: "]
[]
[null,"Podpis Wykonawcy: "]
[]
[]
[]
[]
["Dokument należy wypełnić i podpisać kwalifikowanym podpisem elektronicznym                                                                                           lub podpisem zaufanym lub podpisem osobistym.\nZamawiający zaleca zapisanie dokumentu w formacie PDF.   "]

{"sheet":"Zadanie nr 4","index":3,"n_rows":24,"n_cols":11,"rows_kept":24,"merged":[[0,0,0,10],[1,0,1,10],[4,0,4,2],[5,0,5,9],[6,0,6,10],[7,0,7,10],[8,0,20,0],[8,1,8,10],[9,1,9,10],[10,1,11,10],[12,1,12,10],[13,1,13,3],[13,5,20,10],[14,1,15,4],[16,1,17,4],[18,1,20,4],[23,1,23,10]]}
["FORMULARZ CENOWY DLA ZADANIA NR 4 (ZAŁACZNIK NR 1.4)"]
["Bankiet zamknięcia – 23 października 2026 r. "]
["lp.","świadczenie","opis świadczenia","termin","liczba osób","Jednostka rozliczeniwa","Ilość do wyceny","Cena jednostkowa netto [zł]","Wartość netto [zł]","VAT                      [%]","Wartość brutto [zł]"]
["1.","Bankiet zamknięcia","przygotowanie w formie szwedzkiego stołu: bufet ciepły (4-6 propozycji – 2,5 p./os., porcja nie mniejsza niż 100g.), przekąski-finger (5-15 propozycji – 4,5 p./os., porcja nie mniejsza niż 25g.), tartinki dekorowane (3-6 propozycji 2 p./os. porcja nie mniejsza niż 25g.), bufet deserowy (mini desery i ciasteczka bankietowe (3-5 propozycji – 3 p./os., porcja nie mniejsza niż 25g.), napoje zimne i gorące bez limitu: napoje zimne (soki, min. 2 smaki – 0,5 l/os.), woda, dodatki; ciepłe (herbata, kawa bez limitu); alkohole (Prosecco 0,15 l/os., wino wytrawne białe i czerwone 0,3 l/ os. – serwowane, liczone wg faktycznego  spożycia)  ","23.10.2026",250,"osoba",250]
[]
["ŁĄCZNA CENA OFERTY"]
[]
["Oświadczenie Wykonawcy"]
[null,"Oświadczamy, że zaoferowane ceny obejmują wszystkie koszty niezbędne do prawidłowego wykonania przedmiotu zamówienia, zgodnie z opisem przedmiotu zamówienia, w tym koszty zakwaterowania, organizacji sal, wyposażenia, obsługi, wyżywienia, podatków, opłat oraz wszelkie inne koszty, które mogą powstać w związku z realizacją zamówienia."]
[]
[null,"Oświadczamy, że ceny jednostkowe wskazane w formularzu będą podstawą do rozliczeń z Zamawiającym w przypadku zmniejszenia, zwiększenia lub zamiennego wykorzystania poszczególnych świadczeń, o ile dokumenty zamówienia przewidują takie rozliczenie."]
[]
[]
[null,"Cena oferty brutto: "]
[null,"słownie:"]
[]
[null,"Miejscowość i data: "]
[]
[null,"Podpis Wykonawcy: "]
[]
[]
[]
[]
[null,"Dokument należy wypełnić i podpisać kwalifikowanym podpisem elektronicznym                                                                                               lub podpisem zaufanym lub podpisem osobistym.\nZamawiający zaleca zapisanie dokumentu w formacie PDF.   "]